fUSD/lending_fUSD_20241223
["ID","MTS","AMOUNT","RATE_DAILY","PERIOD"]
[346436915,1734976257281,-1153.17,0.00018087,2]
[346436916,1734976257292,-2491.9,0.00018087,2]
[346436917,1734976257301,-3205.2,0.00018087,2]
[346436918,1734976257311,-2325.53,0.00018087,2]
[346436919,1734976257319,-1354.58,0.00018087,2]
[346436920,1734976257328,-1228.55,0.00018087,2]
[346436921,1734976257337,-500.0,0.00018087,2]
[346436922,1734976257347,-1825.66,0.00018087,2]
[346436923,1734976257356,-1658.88,0.00018087,2]
[346436924,1734976257365,-1132.22,0.00018087,2]
[346436925,1734976257375,-523.8,0.00018087,2]
[346436926,1734976257384,-1823.06,0.00018087,2]
[346436927,1734976257392,-1823.07,0.00018087,2]
[346436928,1734976257401,-2942.59,0.00018087,2]
[346436929,1734976257410,-1453.88,0.00018087,2]
[346436930,1734976257419,-500.0,0.00018087,2]
[346436931,1734976257429,-3002.12,0.00018087,2]
[346436932,1734976257438,-3723.42,0.00018087,2]
[346436933,1734976257448,-858.65,0.00018087,2]
[346436934,1734976257457,-1916.33,0.00018087,2]
[346436935,1734976257466,-500.0,0.00018087,2]
[346436936,1734976257475,-500.0,0.00018087,2]
[346436937,1734976257483,-500.0,0.00018087,2]
[346436938,1734976257492,-2140.99,0.00018087,2]
[346436939,1734976257502,-681.48,0.00018087,2]
[346436940,1734976257511,-1625.29,0.00018087,2]
[346436941,1734976257520,-1841.59,0.00018087,2]
[346436942,1734976257529,-2941.14,0.00018087,2]
[346436943,1734976257538,-1970.61,0.00018087,2]
[346436944,1734976257547,-1621.01,0.00018087,2]
[346436945,1734976257556,-500.0,0.00018087,2]
[346436946,1734976257565,-1991.28,0.00018087,2]
[346436947,1734976257574,-840.53,0.00018087,2]
[346436948,1734976257583,-3058.88,0.00018087,2]
[346436949,1734976257592,-1658.38,0.00018087,2]
[346436950,1734976257601,-2315.11,0.00018087,2]
[346436951,1734976257610,-1894.71,0.00018087,2]
[346436952,1734976257619,-693.01,0.00018087,2]
[346436953,1734976257628,-3242.89,0.00018087,2]
[346436954,1734976257637,-1384.5,0.00018087,2]
[346436955,1734976257646,-3571.32,0.00018087,2]
[346436956,1734976257655,-1571.82,0.00018087,2]
[346436957,1734976257664,-500.0,0.00018087,2]
[346436958,1734976257673,-1252.41,0.00018087,2]
[346436959,1734976257682,-2373.28,0.00018087,2]
[346436960,1734976257691,-1686.64,0.00018087,2]
[346436961,1734976257700,-2249.62,0.00018087,2]
[346436962,1734976257709,-201.93,0.00018087,2]
[346436963,1734976257718,-500.0,0.00018091,2]
[346436964,1734976257727,-500.0,0.00018091,2]
[346436965,1734976257736,-631.27004982,0.00018091,2]
[346436966,1734976257745,-825.9,0.00018091,2]
[346436967,1734976257754,-1517.67,0.00018091,2]
[346436968,1734976257763,-564.66,0.00018091,2]
[346436969,1734976257772,-516.53,0.00018091,2]
[346436970,1734976257781,-324.56584885,0.00018091,2]
[346436971,1734976257790,-500.0,0.00018091,2]
[346436972,1734976257799,-557.54818246,0.00018091,2]
[346436973,1734976257808,-2668.62,0.00018091,2]
[346436974,1734976257817,-318.00553879,0.00018091,2]
[346436975,1734976257826,-862.98,0.00018091,2]
[346436976,1734976257835,-500.0,0.00018091,2]
[346436977,1734976257844,-318.2767202,0.00018091,2]
[346436978,1734976257853,-505.41,0.00018091,2]
[346436979,1734976257862,-539.27,0.00018091,2]
[346436980,1734976257871,-612.44158213,0.00018091,2]
[346436981,1734976257880,-500.0,0.00018091,2]
[346436982,1734976257890,-2534.69,0.00018091,2]
[346436983,1734976257899,-500.0,0.00018091,2]
[346436984,1734976257908,-960.48,0.00018091,2]
[346436985,1734976257917,-2575.85,0.00018091,2]
[346436986,1734976257926,-749.68,0.00018091,2]
[346436987,1734976257936,-1282.79,0.00018091,2]
[346436988,1734976257947,-1346.35,0.00018091,2]
[346436989,1734976257956,-658.92,0.00018091,2]
[346436990,1734976257965,-500.0,0.00018091,2]
[346436991,1734976257974,-500.0,0.00018091,2]
[346436992,1734976257983,-500.0,0.00018091,2]
[346436993,1734976257992,-847.62,0.00018091,2]
[346436994,1734976258001,-500.0,0.00018091,2]
[346436995,1734976258010,-500.0,0.00018091,2]
[346436996,1734976258019,-5126.11,0.00018091,2]
[346436997,1734976258027,-500.0,0.00018091,2]
[346436998,1734976258036,-7375.2,0.00018091,2]
[346436999,1734976258045,-1468.03,0.00018091,2]
[346437000,1734976258054,-7024.69,0.00018091,2]
[346437001,1734976258062,-27031.36,0.00018091,2]
[346437002,1734976258071,-2789.74,0.00018091,2]
[346437003,1734976258080,-500.0,0.00018091,2]
[346437004,1734976258089,-884.61,0.00018091,2]
[346437005,1734976258099,-647.9,0.00018091,2]
[346437006,1734976258108,-585.71122634,0.00018091,2]
[346437007,1734976258117,-5982.48,0.00018091,2]
[346437008,1734976258128,-500.0,0.00018091,2]
[346437009,1734976258137,-500.0,0.00018091,2]
[346437010,1734976258147,-500.0,0.00018091,2]
[346437011,1734976258155,-500.0,0.00018091,2]
[346437012,1734976258164,-620.34,0.00018091,2]
[346437013,1734976258173,-1001.91,0.00018091,2]
[346437014,1734976258182,-579.06,0.00018091,2]
[346437015,1734976258192,-500.0,0.00018091,2]
[346437016,1734976258202,-641.11,0.00018091,2]
[346437017,1734976258213,-4704.67,0.00018091,2]
[346437018,1734976258222,-3469.32,0.00018091,2]
[346437019,1734976258231,-3969.53,0.00018091,2]
[346437020,1734976258240,-1456.66,0.00018091,2]
[346437021,1734976258249,-2066.28,0.00018091,2]
[346437022,1734976258258,-4192.9,0.00018091,2]
[346437023,1734976258267,-1435.66,0.00018091,2]
[346437024,1734976258276,-4398.29,0.00018091,2]
[346437025,1734976258286,-1662.65,0.00018091,2]
[346437026,1734976258295,-8771.74,0.00018091,2]
[346437027,1734976258304,-1824.12,0.00018091,2]
[346437028,1734976258314,-6281.74,0.00018091,2]
[346437029,1734976258323,-401.69071157,0.00018091,2]
[346437030,1734976258333,-1833.27,0.00018091,2]
[346437031,1734976258342,-5741.87,0.00018091,2]
[346437032,1734976258351,-505.2129984,0.00018091,2]
[346437033,1734976258360,-2536.19,0.00018091,2]
[346437034,1734976258370,-896.26,0.00018091,2]
[346437035,1734976258379,-16415.71,0.00018091,2]
[346437036,1734976258388,-150.0,0.00018093,2]
[346437037,1734976258397,-500.0,0.00018094,2]
[346437038,1734976258407,-5622.56,0.00018094,2]
[346437039,1734976258416,-9319.41,0.00018094,2]
[346437040,1734976258425,-6009.65,0.00018094,2]
[346437041,1734976258434,-1615.24,0.00018094,2]
[346437042,1734976258446,-5064.54,0.00018094,2]
[346437043,1734976258455,-14077.6,0.00018094,2]
[346437044,1734976258466,-12761.71,0.00018094,2]
[346437045,1734976258475,-11993.86,0.00018094,2]
[346437046,1734976258484,-3367.24,0.00018094,2]
[346437047,1734976258493,-11304.97,0.00018094,2]
[346437048,1734976258503,-3462.96,0.00018094,2]
[346437049,1734976258512,-1364.64,0.00018094,2]
[346437050,1734976258521,-3082.67,0.00018094,2]
[346437051,1734976258530,-2273.82,0.00018094,2]
[346437052,1734976258539,-12836.76,0.00018094,2]
[346437053,1734976258548,-4006.03,0.00018094,2]
[346437054,1734976258558,-4920.03,0.00018094,2]
[346437055,1734976258567,-4792.68,0.00018094,2]
[346437056,1734976258577,-3385.15,0.00018094,2]
[346437057,1734976258586,-5349.99,0.00018094,2]
[346437058,1734976258595,-150.0,0.00018095,2]
[346437059,1734976258605,-1315.14,0.00018095,2]
[346437060,1734976258614,-5620.53,0.00018095,2]
[346437061,1734976258624,-10051.76,0.00018095,2]
[346437062,1734976258634,-11019.08,0.00018095,2]
[346437063,1734976258644,-53047.52,0.00018095,2]
[346437064,1734976258653,-3709.46,0.00018095,2]
[346437065,1734976258664,-7080.87,0.00018095,2]
[346437066,1734976258674,-4261.14,0.00018095,2]
[346437067,1734976258684,-2996.88,0.00018095,2]
[346437068,1734976258695,-7372.72,0.00018095,2]
[346437069,1734976258704,-38290.66,0.00018095,2]
[346437070,1734976258713,-2010.08,0.00018095,2]
[346437071,1734976258723,-5608.47,0.00018095,2]
[346437072,1734976258732,-4919.45,0.00018095,2]
[346437073,1734976258742,-3790.52,0.00018095,2]
[346437074,1734976258752,-7084.37,0.00018095,2]
[346437075,1734976258764,-741.4,0.00018095,2]
[346437076,1734976258773,-1730.98,0.00018095,2]
[346437077,1734976258782,-3885.77,0.00018095,2]
[346437078,1734976258791,-4626.44,0.00018095,2]
[346437079,1734976258800,-1427.67,0.00018095,2]
[346437080,1734976258810,-8693.39,0.00018095,2]
[346437081,1734976258819,-500.0,0.00018096,2]
[346437082,1734976258828,-500.0,0.00018096,2]
[346437083,1734976258838,-200.0,0.00018096,2]
[346437084,1734976258847,-500.0,0.00018096,2]
[346437085,1734976258856,-500.0,0.00018096,2]
[346437086,1734976258865,-1008.9,0.00018096,2]
[346437087,1734976258874,-500.0,0.00018096,2]
[346437088,1734976258884,-500.0,0.00018096,2]
[346437089,1734976258893,-1063.83,0.00018096,2]
[346437090,1734976258902,-887.68,0.00018096,2]
[346437091,1734976258912,-500.0,0.00018096,2]
[346437092,1734976258921,-1781.56,0.00018096,2]
[346437093,1734976258931,-500.0,0.00018096,2]
[346437094,1734976258941,-500.0,0.00018096,2]
[346437095,1734976258950,-500.0,0.00018096,2]
[346437096,1734976258960,-500.0,0.00018096,2]
[346437097,1734976258970,-500.0,0.00018096,2]
[346437098,1734976258979,-1269.91,0.00018096,2]
[346437099,1734976258988,-500.0,0.00018096,2]
[346437100,1734976258997,-500.0,0.00018096,2]
[346437101,1734976259007,-500.0,0.00018096,2]
[346437102,1734976259016,-500.0,0.00018096,2]
[346437103,1734976259026,-500.0,0.00018096,2]
[346437104,1734976259035,-500.0,0.00018096,2]
[346437105,1734976259045,-500.0,0.00018096,2]
[346437106,1734976259054,-987.8,0.00018096,2]
[346437107,1734976259064,-300.80583517,0.00018096,2]
[346437108,1734976259073,-966.35,0.00018096,2]
[346437109,1734976259082,-532.23,0.00018096,2]
[346437110,1734976259092,-500.0,0.00018096,2]
[346437111,1734976259101,-500.0,0.00018096,2]
[346437112,1734976259111,-933.74,0.00018096,2]
[346437113,1734976259120,-984.61,0.00018096,2]
[346437114,1734976259134,-529.91,0.00018096,2]
[346437115,1734976259143,-926.35,0.00018096,2]
[346437116,1734976259153,-501.05088843,0.00018096,2]
[346437117,1734976259163,-500.0,0.00018096,2]
[346437118,1734976259173,-500.0,0.00018096,2]
[346437119,1734976259183,-1883.69,0.00018096,2]
[346437120,1734976259194,-500.0,0.00018096,2]
[346437121,1734976259205,-500.0,0.00018096,2]
[346437122,1734976259215,-500.0,0.00018096,2]
[346437123,1734976259225,-537.98,0.00018096,2]
[346437124,1734976259235,-1579.82,0.00018096,2]
[346437125,1734976259244,-500.0,0.00018096,2]
[346437126,1734976259254,-500.0,0.00018096,2]
[346437127,1734976259263,-500.0,0.00018096,2]
[346437128,1734976259273,-500.0,0.00018096,2]
[346437129,1734976259282,-500.0,0.00018096,2]
[346437130,1734976259292,-500.0,0.00018096,2]
[346437131,1734976259301,-772.76,0.00018096,2]
[346437132,1734976259310,-500.0,0.00018096,2]
[346437133,1734976259320,-500.0,0.00018096,2]
[346437134,1734976259329,-504.48994447,0.00018096,2]
[346437135,1734976259339,-640.34,0.00018096,2]
[346437136,1734976259348,-500.0,0.00018096,2]
[346437137,1734976259358,-556.25,0.00018096,2]
[346437138,1734976259368,-1189.84,0.00018096,2]
[346437139,1734976259378,-542.14378136,0.00018096,2]
[346437140,1734976259387,-500.0,0.00018096,2]
[346437141,1734976259397,-506.30038498,0.00018096,2]
[346437142,1734976259407,-792.36,0.00018096,2]
[346437143,1734976259417,-500.0,0.00018096,2]
[346437144,1734976259427,-710.13,0.00018096,2]
[346437145,1734976259436,-500.0,0.00018096,2]
[346437146,1734976259446,-500.0,0.00018096,2]
[346437147,1734976259456,-855.9,0.00018096,2]
[346437148,1734976259466,-944.28,0.00018096,2]
[346437149,1734976259475,-500.0,0.00018096,2]
[346437150,1734976259485,-500.0,0.00018096,2]
[346437151,1734976259495,-1343.98,0.00018096,2]
[346437152,1734976259505,-500.0,0.00018096,2]
[346437153,1734976259515,-536.74,0.00018096,2]
[346437154,1734976259525,-500.0,0.00018096,2]
[346437155,1734976259534,-500.0,0.00018096,2]
[346437156,1734976259544,-853.29,0.00018096,2]
[346437157,1734976259553,-522.9,0.00018096,2]
[346437158,1734976259563,-1947.2,0.00018096,2]
[346437159,1734976259573,-501.51,0.00018096,2]
[346437160,1734976259583,-375.28546665,0.00018096,2]
[346437161,1734976259593,-500.0,0.00018096,2]
[346437162,1734976259603,-1191.25,0.00018096,2]
[346437163,1734976259612,-500.0,0.00018096,2]
[346437164,1734976259622,-624.22,0.00018096,2]
[346437165,1734976259632,-546.01,0.00018096,2]
[346437166,1734976259642,-500.0,0.00018096,2]
[346437167,1734976259651,-500.0,0.00018096,2]
[346437168,1734976259661,-500.0,0.00018096,2]
[346437169,1734976259671,-1210.03,0.00018096,2]
[346437170,1734976259681,-500.0,0.00018096,2]
[346437171,1734976259691,-500.0,0.00018096,2]
[346437172,1734976259701,-500.0,0.00018096,2]
[346437173,1734976259711,-697.21,0.00018096,2]
[346437174,1734976259721,-500.0,0.00018096,2]
[346437175,1734976259731,-1228.86,0.00018096,2]
[346437176,1734976259741,-500.0,0.00018096,2]
[346437177,1734976259751,-500.0,0.00018096,2]
[346437178,1734976259760,-500.0,0.00018096,2]
[346437179,1734976259770,-500.0,0.00018096,2]
[346437180,1734976259780,-500.0,0.00018096,2]
[346437181,1734976259790,-500.0,0.00018096,2]
[346437182,1734976259800,-503.20209987,0.00018096,2]
[346437183,1734976259809,-500.0,0.00018096,2]
[346437184,1734976259819,-500.0,0.00018096,2]
[346437185,1734976259830,-500.0,0.00018096,2]
[346437186,1734976259840,-500.0,0.00018096,2]
[346437187,1734976259851,-531.36,0.00018096,2]
[346437188,1734976259860,-500.0,0.00018096,2]
[346437189,1734976259871,-500.0,0.00018096,2]
[346437190,1734976259881,-1945.63,0.00018096,2]
[346437191,1734976259891,-500.0,0.00018096,2]
[346437192,1734976259902,-500.0,0.00018096,2]
[346437193,1734976259911,-3074.23,0.00018096,2]
[346437194,1734976259921,-897.16,0.00018096,2]
[346437195,1734976259932,-898.16,0.00018096,2]
[346437196,1734976259943,-500.0,0.00018096,2]
[346437197,1734976259952,-2239.78,0.00018096,2]
[346437198,1734976259962,-1483.86,0.00018096,2]
[346437199,1734976259972,-500.0,0.00018096,2]
[346437200,1734976259982,-3348.04,0.00018096,2]
[346437201,1734976259992,-500.0,0.00018096,2]
[346437202,1734976260003,-1265.08,0.00018096,2]
[346437203,1734976260013,-1050.43,0.00018096,2]
[346437204,1734976260023,-500.0,0.00018096,2]
[346437205,1734976260033,-500.0,0.00018096,2]
[346437206,1734976260044,-720.26,0.00018096,2]
[346437207,1734976260055,-700.76,0.00018096,2]
[346437208,1734976260066,-500.0,0.00018096,2]
[346437209,1734976260076,-500.0,0.00018096,2]
[346437210,1734976260087,-970.41,0.00018096,2]
[346437211,1734976260100,-907.2,0.00018096,2]
[346437212,1734976260110,-613.28,0.00018096,2]
[346437213,1734976260120,-500.0,0.00018096,2]
[346437214,1734976260134,-2961.33,0.00018096,2]
[346437215,1734976260144,-500.0,0.00018096,2]
[346437216,1734976260155,-517.25016098,0.00018096,2]
[346437217,1734976260165,-500.0,0.00018096,2]
[346437218,1734976260176,-500.0,0.00018096,2]
[346437219,1734976260186,-500.0,0.00018096,2]
[346437220,1734976260197,-2357.48,0.00018096,2]
[346437221,1734976260210,-514.3,0.00018096,2]
[346437222,1734976260222,-500.0,0.00018096,2]
[346437223,1734976260234,-500.0,0.00018096,2]
[346437224,1734976260244,-589.47,0.00018096,2]
[346437225,1734976260255,-500.0,0.00018096,2]
[346437226,1734976260266,-500.0,0.00018096,2]
[346437227,1734976260277,-500.0,0.00018096,2]
[346437228,1734976260287,-151.74,0.00018096,2]
[346437229,1734976260299,-500.0,0.00018096,2]
[346437230,1734976260309,-561.95979008,0.00018096,2]
[346437231,1734976260319,-500.0,0.00018096,2]
[346437232,1734976260329,-3097.46,0.00018096,2]
[346437233,1734976260340,-612.56,0.00018096,2]
[346437234,1734976260351,-3492.33,0.00018096,2]
[346437235,1734976260361,-500.0,0.00018096,2]
[346437236,1734976260371,-633.42,0.00018096,2]
[346437237,1734976260381,-666.4,0.00018096,2]
[346437238,1734976260391,-500.0,0.00018096,2]
[346437239,1734976260402,-731.94,0.00018096,2]
[346437240,1734976260412,-500.0,0.00018096,2]
[346437241,1734976260423,-3000.86,0.00018096,2]
[346437242,1734976260434,-568.85,0.00018096,2]
[346437243,1734976260445,-2136.82,0.00018096,2]
[346437244,1734976260455,-500.0,0.00018096,2]
[346437245,1734976260465,-500.0,0.00018096,2]
[346437246,1734976260475,-500.0,0.00018096,2]
[346437247,1734976260486,-646.44,0.00018096,2]
[346437248,1734976260496,-917.54,0.00018096,2]
[346437249,1734976260506,-500.0,0.00018096,2]
[346437250,1734976260516,-619.4,0.00018096,2]
[346437251,1734976260526,-1294.29,0.00018096,2]
[346437252,1734976260536,-500.0,0.00018096,2]
[346437253,1734976260546,-906.69,0.00018096,2]
[346437254,1734976260556,-3350.27,0.00018096,2]
[346437255,1734976260567,-500.0,0.00018096,2]
[346437256,1734976260576,-1790.88,0.00018096,2]
[346437257,1734976260587,-500.0,0.00018096,2]
[346437258,1734976260858,-915.29,0.00018096,2]
[346437259,1734976260874,-500.0,0.00018096,2]
[346437260,1734976260884,-500.0,0.00018096,2]
[346437261,1734976260894,-764.87,0.00018096,2]
[346437262,1734976260903,-2774.72,0.00018096,2]
[346437263,1734976260912,-872.81,0.00018096,2]
[346437264,1734976260922,-500.0,0.00018096,2]
[346437265,1734976260932,-500.0,0.00018096,2]
[346437266,1734976260942,-500.0,0.00018096,2]
[346437267,1734976260952,-309.92747184,0.00018096,2]
[346437268,1734976260962,-500.0,0.00018096,2]
[346437269,1734976260971,-500.0,0.00018096,2]
[346437270,1734976260981,-2032.43,0.00018096,2]
[346437271,1734976260991,-577.89,0.00018096,2]
[346437272,1734976261001,-500.0,0.00018096,2]
[346437273,1734976261010,-500.0,0.00018096,2]
[346437274,1734976261019,-1275.46,0.00018096,2]
[346437275,1734976261029,-656.21,0.00018096,2]
[346437276,1734976261038,-500.0,0.00018096,2]
[346437277,1734976261048,-702.39,0.00018096,2]
[346437278,1734976261057,-1904.3,0.00018096,2]
[346437279,1734976261066,-500.0,0.00018096,2]
[346437280,1734976261075,-500.0,0.00018096,2]
[346437281,1734976261085,-500.0,0.00018096,2]
[346437282,1734976261094,-2429.79,0.00018096,2]
[346437283,1734976261104,-500.0,0.00018096,2]
[346437284,1734976261114,-500.0,0.00018096,2]
[346437285,1734976261124,-1984.12,0.00018096,2]
[346437286,1734976261135,-1899.94,0.00018096,2]
[346437287,1734976261145,-500.0,0.00018096,2]
[346437288,1734976261155,-1498.5,0.00018096,2]
[346437289,1734976261165,-1009.48,0.00018096,2]
[346437290,1734976261175,-500.0,0.00018096,2]
[346437291,1734976261184,-500.0,0.00018096,2]
[346437292,1734976261194,-1423.51,0.00018096,2]
[346437293,1734976261206,-500.0,0.00018096,2]
[346437294,1734976261216,-534.03,0.00018096,2]
[346437295,1734976261226,-500.0,0.00018096,2]
[346437296,1734976261236,-3297.7,0.00018096,2]
[346437297,1734976261245,-500.0,0.00018096,2]
[346437298,1734976261255,-500.0,0.00018096,2]
[346437299,1734976261265,-321.52084353,0.00018096,2]
[346437300,1734976261275,-500.0,0.00018096,2]
[346437301,1734976261284,-500.0,0.00018096,2]
[346437302,1734976261294,-500.0,0.00018096,2]
[346437303,1734976261304,-500.0,0.00018096,2]
[346437304,1734976261314,-1587.08,0.00018096,2]
[346437305,1734976261323,-513.08797627,0.00018096,2]
[346437306,1734976261333,-500.0,0.00018096,2]
[346437307,1734976261342,-500.0,0.00018096,2]
[346437308,1734976261352,-657.86,0.00018096,2]
[346437309,1734976261362,-2293.36,0.00018096,2]
[346437310,1734976261372,-500.0,0.00018096,2]
[346437311,1734976261382,-956.37,0.00018096,2]
[346437312,1734976261393,-663.25,0.00018096,2]
[346437313,1734976261402,-1304.37,0.00018096,2]
[346437314,1734976261412,-1376.87,0.00018096,2]
[346437315,1734976261422,-500.0,0.00018096,2]
[346437316,1734976261432,-606.77,0.00018096,2]
[346437317,1734976261443,-500.0,0.00018096,2]
[346437318,1734976261454,-500.0,0.00018096,2]
[346437319,1734976261463,-2329.24,0.00018096,2]
[346437320,1734976261473,-500.0,0.00018096,2]
[346437321,1734976261483,-500.0,0.00018096,2]
[346437322,1734976261493,-1999.75,0.00018096,2]
[346437323,1734976261503,-860.8,0.00018096,2]
[346437324,1734976261513,-1584.95,0.00018096,2]
[346437325,1734976261523,-814.23,0.00018096,2]
[346437326,1734976261533,-500.0,0.00018096,2]
[346437327,1734976261542,-500.0,0.00018096,2]
[346437328,1734976261552,-500.0,0.00018096,2]
[346437329,1734976261562,-2473.74,0.00018096,2]
[346437330,1734976261572,-500.0,0.00018096,2]
[346437331,1734976261581,-500.0,0.00018096,2]
[346437332,1734976261591,-806.89,0.00018096,2]
[346437333,1734976261600,-3489.18,0.00018096,2]
[346437334,1734976261610,-1529.57,0.00018096,2]
[346437335,1734976261620,-525.57,0.00018096,2]
[346437336,1734976261630,-700.0,0.00018096,2]
[346437337,1734976261639,-1507.29,0.00018096,2]
[346437338,1734976261649,-1461.06,0.00018096,2]
[346437339,1734976261659,-510.11311772,0.00018096,2]
[346437340,1734976261668,-1796.06,0.00018096,2]
[346437341,1734976261678,-576.42,0.00018096,2]
[346437342,1734976261687,-1567.34,0.00018096,2]
[346437343,1734976261697,-500.0,0.00018096,2]
[346437344,1734976261707,-1856.55,0.00018096,2]
[346437345,1734976261717,-500.0,0.00018096,2]
[346437346,1734976261726,-500.0,0.00018096,2]
[346437347,1734976261736,-500.0,0.00018096,2]
[346437348,1734976261745,-573.12,0.00018096,2]
[346437349,1734976261755,-1705.03,0.00018096,2]
[346437350,1734976261764,-929.93,0.00018096,2]
[346437351,1734976261773,-1481.02,0.00018096,2]
[346437352,1734976261783,-500.0,0.00018096,2]
[346437353,1734976261792,-500.0,0.00018096,2]
[346437354,1734976261802,-1554.02,0.00018096,2]
[346437355,1734976261811,-500.0,0.00018096,2]
[346437356,1734976261820,-500.0,0.00018096,2]
[346437357,1734976261830,-1512.97,0.00018096,2]
[346437358,1734976261840,-500.0,0.00018096,2]
[346437359,1734976261850,-3967.65,0.00018096,2]
[346437360,1734976261860,-500.0,0.00018096,2]
[346437361,1734976261869,-1246.38,0.00018096,2]
[346437362,1734976261879,-870.96,0.00018096,2]
[346437363,1734976261888,-1226.94,0.00018096,2]
[346437364,1734976261898,-1439.57,0.00018096,2]
[346437365,1734976261908,-500.0,0.00018096,2]
[346437366,1734976261918,-500.0,0.00018096,2]
[346437367,1734976261927,-500.0,0.00018096,2]
[346437368,1734976261937,-1887.55,0.00018096,2]
[346437369,1734976261948,-500.0,0.00018096,2]
[346437370,1734976261958,-749.42,0.00018096,2]
[346437371,1734976261968,-604.97,0.00018096,2]
[346437372,1734976261977,-1044.86,0.00018096,2]
[346437373,1734976261987,-2488.03,0.00018096,2]
[346437374,1734976261996,-500.0,0.00018096,2]
[346437375,1734976262006,-500.0,0.00018096,2]
[346437376,1734976262015,-2607.87,0.00018096,2]
[346437377,1734976262024,-568.75,0.00018096,2]
[346437378,1734976262033,-500.0,0.00018096,2]
[346437379,1734976262043,-500.0,0.00018096,2]
[346437380,1734976262052,-1513.53,0.00018096,2]
[346437381,1734976262062,-624.2,0.00018096,2]
[346437382,1734976262071,-500.0,0.00018096,2]
[346437383,1734976262080,-939.32,0.00018096,2]
[346437384,1734976262090,-720.85,0.00018096,2]
[346437385,1734976262100,-1370.39,0.00018096,2]
[346437386,1734976262109,-1503.63,0.00018096,2]
[346437387,1734976262119,-500.0,0.00018096,2]
[346437388,1734976262133,-500.0,0.00018096,2]
[346437389,1734976262142,-500.0,0.00018096,2]
[346437390,1734976262152,-943.59,0.00018096,2]
[346437391,1734976262161,-607.33,0.00018096,2]
[346437392,1734976262173,-1021.61,0.00018096,2]
[346437393,1734976262182,-1110.92,0.00018096,2]
[346437394,1734976262192,-1160.57,0.00018096,2]
[346437395,1734976262206,-840.44,0.00018096,2]
[346437396,1734976262216,-2609.31,0.00018096,2]
[346437397,1734976262225,-500.0,0.00018096,2]
[346437398,1734976262235,-506.72,0.00018096,2]
[346437399,1734976262245,-500.0,0.00018096,2]
[346437400,1734976262254,-500.0,0.00018096,2]
[346437401,1734976262263,-795.76,0.00018096,2]
[346437402,1734976262273,-2136.07,0.00018096,2]
[346437403,1734976262284,-2406.25,0.00018096,2]
[346437404,1734976262294,-500.0,0.00018096,2]
[346437405,1734976262304,-923.2,0.00018096,2]
[346437406,1734976262314,-500.0,0.00018096,2]
[346437407,1734976262323,-500.0,0.00018096,2]
[346437408,1734976262333,-428.97090145,0.00018096,2]
[346437409,1734976262343,-1602.94,0.00018096,2]
[346437410,1734976262352,-2292.26,0.00018096,2]
[346437411,1734976262362,-1660.55,0.00018096,2]
[346437412,1734976262371,-500.0,0.00018096,2]
[346437413,1734976262381,-500.0,0.00018096,2]
[346437414,1734976262391,-500.0,0.00018096,2]